bitfinex-derivatives/quotes_ETHF0:USTF0_20250405
["timestamp","ask_amount","ask_price","bid_price","bid_amount"]
[1743823113878,6.77607,1815.0,1814.9,1.1024]
[1743823114486,5.6737,1815.0,1814.9,1.1024]
[1743823115687,4.2003,1815.0,1814.9,1.1024]
[1743823118286,4.2003,1815.0,1814.8,1.5297]
[1743823118287,1.1024,1814.9,1814.8,2.63212]
[1743823118486,2.6363,1814.9,1814.8,2.63212]
[1743823119091,1.5339,1814.9,1814.8,2.63212]
[1743823119682,2.6363,1814.9,1814.8,2.63212]
[1743823120280,1.5339,1814.9,1814.8,2.63212]
[1743823121292,2.6363,1814.9,1814.8,2.63212]
[1743823123097,2.6363,1814.9,1814.8,1.5297]
[1743823123299,1.10246,1814.8,1814.7,0.71976811]
[1743823123490,3.23666,1814.8,1814.7,2.23746811]
[1743823124297,3.23666,1814.8,1814.7,3.33998811]
[1743823125394,3.23666,1814.8,1814.7,1.52596811]
[1743823130690,3.23666,1814.8,1814.7,0.00826811]
[1743823134595,3.23666,1814.8,1814.7,1.46576811]
[1743823134800,2.1342,1814.8,1814.7,2.56828811]
[1743823136814,3.2078,1815.0,1814.7,1.46576811]
[1743823137001,0.7026,1815.3,1814.9,2.75601]
[1743823137303,3.51426811,1815.4,1815.0,2.9076]
[1743823137505,3.51426811,1815.4,1815.3,1.10216]
[1743823137506,0.00826811,1815.4,1815.3,1.10216]
[1743823138098,0.00826811,1815.4,1815.3,1.83796]
[1743823140403,0.00826811,1815.4,1815.3,7.54576]
[1743823140804,0.00826811,1815.4,1815.3,8.29242146]
[1743823141308,0.00826811,1815.4,1815.3,5.79242146]
[1743823141806,0.00826811,1815.4,1815.3,5.04576]
[1743823147607,0.6953,1815.9,1815.4,2.75522]
[1743823147903,3.503,1815.9,1815.8,1.10186]
[1743823149000,5.687,1815.9,1815.8,1.10186]
[1743823150812,6.7888,1815.9,1815.7,2.52483811]
[1743823151206,5.687,1815.9,1815.8,1.3858]
[1743823151401,5.687,1815.9,1815.8,2.48766]
[1743823151708,2.184,1815.9,1815.8,2.48766]
[1743823151909,4.23956811,1816.0,1815.9,1.1018]
[1743823152110,4.23956811,1816.0,1815.9,3.3089]
[1743823152615,0.73856811,1816.0,1815.9,3.3089]
[1743823158505,2.89736811,1816.0,1815.9,3.3089]
[1743823158816,3.99910811,1816.0,1815.9,3.3089]
[1743823160217,3.99910811,1816.0,1815.9,1.4642]
[1743823160414,2.89736811,1816.0,1815.9,2.566]
[1743823162117,3.99910811,1816.0,1815.9,2.566]
[1743823165321,3.99910811,1816.0,1815.9,1.4642]
[1743823168816,3.99910811,1816.0,1815.7,4.31795811]
[1743823168817,1.10186,1815.8,1815.7,4.31795811]
[1743823169213,2.58024,1815.9,1815.7,4.31795811]
[1743823170023,2.58024,1815.9,1815.8,1.10186]
[1743823170221,2.58024,1815.9,1815.8,2.63946]
[1743823170423,1.4784,1815.9,1815.8,2.63946]
[1743823170723,2.55684811,1816.0,1815.8,2.988]
[1743823170919,4.03374811,1816.0,1815.8,4.08982]
[1743823172926,4.03374811,1816.0,1815.9,1.1018]
[1743823173125,4.03374811,1816.0,1815.8,4.08981]
[1743823173622,4.03374811,1816.0,1815.9,1.1018]
[1743823173829,4.03374811,1816.0,1815.9,2.4984]
[1743823173830,0.00826811,1816.0,1815.9,2.4984]
[1743823182846,0.00826811,1816.0,1815.9,3.25409714]
[1743823185442,0.00826811,1816.0,1815.9,2.4984]
[1743823186747,1.46566811,1816.0,1815.9,2.4984]
[1743823187146,1.46566811,1816.0,1815.9,1.1018]
[1743823189751,0.00826811,1816.0,1815.9,1.1018]
[1743823190153,0.00826811,1816.0,1815.9,3.25359179]
[1743823191255,0.00826811,1816.0,1815.9,3.25353004]
[1743823193152,0.00826811,1816.0,1815.9,3.25351966]
[1743823194351,0.00826811,1816.0,1815.9,1.1018]
[1743823194947,1.50946811,1816.0,1815.9,1.1018]
[1743823207757,0.00826811,1816.0,1815.9,1.1018]
[1743823209161,0.00826811,1816.0,1815.9,1.85834607]
[1743823209461,0.00826811,1816.0,1815.9,1.8583224]
[1743823210063,0.00826811,1816.0,1815.9,3.2900224]
[1743823213065,0.00826811,1816.0,1815.9,2.5335]
[1743823220775,0.00826811,1816.0,1815.7,1.82503811]
[1743823220969,1.10186,1815.8,1815.7,0.00826811]
[1743823221374,2.50776,1815.8,1815.7,0.00826811]
[1743823221980,2.50776,1815.8,1815.7,1.11018811]
[1743823222878,2.50776,1815.8,1815.7,0.00826811]
[1743823226877,2.50776,1815.8,1815.7,1.11018811]
[1743823227077,1.4059,1815.8,1815.7,2.59768811]
[1743823228088,2.50776,1815.8,1815.7,2.59768811]
[1743823228390,2.50776,1815.8,1815.7,1.49576811]
[1743823229288,2.50776,1815.8,1815.7,2.59768811]
[1743823229491,1.4059,1815.8,1815.7,2.59768811]
[1743823229788,2.50776,1815.8,1815.7,1.49576811]
[1743823231086,2.50776,1815.8,1815.7,0.00826811]
[1743823233992,1.10207,1815.5,1815.3,1.80643]
[1743823234200,1.8215,1815.4,1815.3,1.3884]
[1743823234396,1.1022,1815.3,1815.1,1.10226]
[1743823234699,2.5418,1815.3,1815.1,1.10226]
[1743823234893,2.5418,1815.3,1815.1,2.49066]
[1743823235395,1.4396,1815.2,1815.1,2.49068]
[1743823238795,2.54182,1815.2,1815.1,1.3884]
[1743823239292,1.4396,1815.2,1815.1,1.3884]
[1743823239802,4.9336,1815.2,1815.1,2.49068]
[1743823240394,3.494,1815.2,1815.1,2.49068]
[1743823242606,1.10228,1815.1,1815.0,0.00826811]
[1743823242798,4.10468,1815.1,1815.0,0.00826811]
[1743823243095,6.60468,1815.1,1815.0,0.00826811]
[1743823243294,4.10468,1815.1,1815.0,0.00826811]
[1743823243498,6.60468,1815.1,1815.0,0.00826811]
[1743823245696,1.10246,1814.8,1814.7,1.4763]
[1743823245896,4.59646,1814.8,1814.7,1.4763]
[1743823246291,6.83056,1814.8,1814.7,1.4763]
[1743823246496,6.83056,1814.8,1814.5,2.55329]
[1743823246497,6.83061,1814.8,1814.5,2.55329]
[1743823246803,2.2388,1814.7,1814.6,2.58929]
[1743823247489,3.34132,1814.7,1814.6,1.4867]
[1743823248404,1.10259,1814.6,1814.5,0.00826811]
[1743823248703,1.4923,1814.6,1814.5,0.00826811]
[1743823248903,1.4923,1814.6,1814.5,1.49496811]
[1743823249105,1.4923,1814.6,1814.5,2.20316811]
[1743823249804,2.59489,1814.6,1814.5,2.20316811]
[1743823250106,2.59489,1814.6,1814.5,3.30581811]
[1743823250501,3.9543,1814.7,1814.6,1.10259]
[1743823250706,3.9543,1814.7,1814.6,2.50979]
[1743823251801,1.10259,1814.6,1814.5,0.00826811]
[1743823252005,6.57067,1814.7,1814.5,1.81291811]
[1743823252509,1.10259,1814.6,1814.5,0.71026811]
[1743823252708,2.59919,1814.6,1814.5,1.11091811]
[1743823252911,1.4966,1814.6,1814.5,1.11091811]
[1743823253105,5.05687,1814.7,1814.5,1.11091811]
[1743823253309,6.55347,1814.7,1814.6,1.4044]
[1743823257616,3.50326811,1814.8,1814.7,1.10252]
[1743823257912,4.60572811,1814.8,1814.7,0.6994]
[1743823258306,6.09822811,1814.8,1814.7,2.2368]
[1743823259006,6.09822811,1814.8,1814.7,3.33932]
[1743823259207,4.23306811,1814.8,1814.7,3.33932]
[1743823260215,3.50326811,1814.8,1814.7,3.33932]
[1743823260413,4.60572811,1814.8,1814.7,3.33932]
[1743823260713,3.50326811,1814.8,1814.7,3.33932]
[1743823264412,0.00826811,1814.8,1814.7,3.33932]
[1743823270114,0.00826811,1814.8,1814.7,5.83932]
[1743823270317,0.00826811,1814.8,1814.7,3.33932]
[1743823270520,0.00826811,1814.8,1814.7,5.83932]
[1743823270815,0.00826811,1814.8,1814.7,3.33932]
[1743823273218,0.00826811,1814.8,1814.7,2.2368]
[1743823273419,0.00826811,1814.8,1814.7,3.33932]
[1743823276806,2.7553,1815.4,1814.7,3.33932]
[1743823276807,3.2078,1815.5,1814.9,2.75599]
[1743823277012,3.2078,1815.5,1815.4,1.1021]
[1743823277217,4.2619,1815.6,1815.5,1.10204]
[1743823278407,4.2619,1815.6,1815.5,2.61444]
[1743823279314,3.495,1815.6,1815.5,2.61444]
[1743823279617,0.00826811,1815.7,1815.6,1.10198]
[1743823279817,0.00826811,1815.7,1815.6,1.81828]
[1743823281619,1.11020811,1815.7,1815.5,2.62265811]
[1743823281818,0.7439,1815.6,1815.5,2.62265811]
[1743823282019,0.7439,1815.6,1815.5,1.11025811]
[1743823282721,2.1606,1815.6,1815.5,1.11025811]
[1743823283817,3.26258,1815.6,1815.5,0.00826811]
[1743823284415,2.1606,1815.6,1815.5,1.11030811]
[1743823288021,3.26258,1815.6,1815.5,1.11030811]
[1743823293926,2.1606,1815.6,1815.5,1.11030811]
[1743823297617,3.26258,1815.6,1815.5,1.11030811]
[1743823297925,2.1606,1815.6,1815.5,1.11030811]
[1743823298619,2.1606,1815.6,1815.5,0.00826811]
[1743823298620,3.26258,1815.6,1815.5,0.00826811]
[1743823302531,1.10216,1815.3,1815.1,0.722]
[1743823302731,1.4891,1815.2,1815.1,1.10226]
[1743823302933,6.4139,1815.2,1815.1,1.10226]
[1743823304130,4.222,1815.2,1815.1,1.10226]
[1743823305934,4.9807,1815.2,1815.1,1.10226]
[1743823306133,6.3774,1815.2,1815.1,1.10226]
[1743823307633,1.10228,1815.1,1815.0,1.43786811]
[1743823307940,1.10228,1815.1,1815.0,0.00826811]
[1743823307941,2.51718,1815.1,1815.0,0.00826811]
[1743823309435,2.51718,1815.1,1815.0,1.11060811]
[1743823309936,2.51718,1815.1,1815.0,0.00826811]
[1743823311028,1.10255,1814.7,1814.5,1.86461]
[1743823311232,0.7076,1814.6,1814.5,3.35381]
[1743823313737,0.7076,1814.6,1814.5,2.59181]
[1743823313942,0.7076,1814.6,1814.5,3.33451]
[1743823314636,1.52866811,1814.7,1814.6,1.10259]
[1743823314837,1.52866811,1814.7,1814.6,2.55619]
[1743823315536,0.00826811,1814.7,1814.6,2.55619]
[1743823325852,0.00826811,1814.7,1814.6,5.76399]
[1743823328755,0.00826811,1814.7,1814.6,2.55619]
[1743823328950,2.23166811,1814.7,1814.6,2.55619]
[1743823332361,2.23166811,1814.7,1814.6,1.10259]
[1743823333153,5.72666811,1814.7,1814.6,1.10259]
[1743823338756,5.72666811,1814.7,1814.6,2.56359]
[1743823348072,5.72666811,1814.7,1814.6,1.10259]
[1743823348272,6.82918811,1814.7,1814.5,1.1026]
[1743823348470,1.4446,1814.6,1814.5,1.1026]
[1743823348671,2.54722,1814.6,1814.4,1.11092811]
[1743823348977,1.84095,1814.5,1814.4,0.00826811]
[1743823349272,3.28555,1814.5,1814.4,0.00826811]
[1743823349471,1.1028,1814.3,1814.1,1.10285]
[1743823349668,4.2567,1814.2,1814.1,1.10285]
[1743823349872,5.7013,1814.2,1814.1,1.10285]
[1743823350872,6.80413,1814.2,1814.0,1.11117811]
[1743823351069,2.2563,1814.1,1814.0,1.11117811]
[1743823353077,2.2563,1814.1,1814.0,2.56837811]
[1743823355774,0.7466,1814.1,1814.0,2.56837811]
[1743823358483,4.2577,1814.2,1814.1,1.10289]
[1743823358685,3.496,1814.2,1814.1,3.26169]
[1743823359683,3.496,1814.2,1814.1,2.49719]
[1743823359881,4.923,1814.2,1814.1,2.49719]
[1743823367988,0.6941,1814.3,1814.2,1.10283]
[1743823368185,3.9562,1814.4,1814.3,1.10277]
[1743823368386,7.4522,1814.4,1814.3,1.10277]
[1743823368587,7.4522,1814.4,1814.3,2.56327]
[1743823369683,8.55491,1814.4,1814.3,2.56327]
[1743823369884,9.96881,1814.4,1814.3,2.56327]
[1743823372394,5.6583,1814.4,1814.3,2.56327]
[1743823372695,6.76101,1814.4,1814.3,2.56327]
[1743823372895,5.6583,1814.4,1814.3,2.56327]
[1743823373292,6.76101,1814.4,1814.3,2.56327]
[1743823373594,4.59871,1814.4,1814.3,2.56327]
[1743823377800,6.06011,1814.4,1814.3,2.56327]
[1743823378598,6.06011,1814.4,1814.3,1.4605]
[1743823379397,6.06011,1814.4,1814.2,1.81008]
[1743823379600,0.7137,1814.3,1814.2,1.81008]
[1743823379894,1.81647,1814.3,1814.2,1.81008]
[1743823380091,3.97477,1814.3,1814.2,1.10278]
[1743823380500,2.872,1814.3,1814.2,1.10278]
[1743823380700,3.97477,1814.3,1814.2,1.10278]
[1743823380900,1.10289,1814.1,1814.0,0.00826811]
[1743823381098,4.59889,1814.1,1814.0,0.00826811]
[1743823381394,3.496,1814.1,1814.0,1.11121811]
[1743823381595,4.59889,1814.1,1814.0,1.11121811]
[1743823381792,6.03919,1814.1,1814.0,0.00826811]
[1743823387105,3.496,1814.1,1814.0,1.11121811]
[1743823387307,3.496,1814.1,1814.0,3.24191811]
[1743823389507,6.0094,1814.3,1814.0,2.13896811]
[1743823389706,5.3125,1814.3,1814.2,1.10283]
[1743823390305,5.3125,1814.3,1814.2,2.58073]
[1743823390609,5.3125,1814.3,1814.2,1.4779]
[1743823391108,6.0447,1814.3,1814.2,2.58073]
[1743823391310,4.2097,1814.3,1814.2,2.58073]
[1743823395113,5.31247,1814.3,1814.2,2.58073]
[1743823396312,4.2097,1814.3,1814.2,2.58073]
[1743823396813,3.496,1814.3,1814.2,2.58073]
[1743823398312,4.59877,1814.3,1814.2,2.58073]
[1743823398512,3.496,1814.3,1814.2,2.58073]
[1743823398909,2.2155,1814.6,1814.2,4.6857]
[1743823399105,3.496,1814.5,1814.4,1.10271]
[1743823399310,3.496,1814.5,1814.4,3.33601]
[1743823400104,2.2155,1814.6,1814.5,1.10265]
[1743823400309,0.00826811,1814.7,1814.6,1.10259]
[1743823400509,3.50426811,1814.7,1814.6,1.80769]
[1743823401009,0.00826811,1814.7,1814.6,1.80769]
[1743823403413,1.11078811,1814.7,1814.6,1.10259]
[1743823403614,1.11078811,1814.7,1814.5,2.60821]
[1743823403615,2.54418811,1814.7,1814.5,2.60821]
[1743823404008,1.4334,1814.6,1814.5,2.60821]
[1743823405118,1.4334,1814.6,1814.5,1.10265]
[1743823405318,6.03099,1814.6,1814.5,1.10265]
[1743823405620,4.9284,1814.6,1814.4,5.75776]
[1743823405918,2.9409,1814.5,1814.4,1.10266]
[1743823408020,4.04355,1814.5,1814.4,1.10266]
[1743823408821,4.04355,1814.5,1814.3,1.81472]
[1743823409019,1.5161,1814.4,1814.3,1.81472]
[1743823410324,2.55747,1814.5,1814.4,1.10271]
[1743823410621,4.2367,1814.5,1814.4,2.59641]
[1743823411816,1.5161,1814.6,1814.5,1.10265]
[1743823412015,5.0111,1814.6,1814.5,2.51555]
[1743823412222,6.11369,1814.6,1814.5,2.51555]
[1743823412421,5.0111,1814.6,1814.5,2.51555]
[1743823412923,6.11369,1814.6,1814.5,2.51555]
[1743823413128,6.11369,1814.6,1814.5,1.4129]
[1743823414124,5.0111,1814.6,1814.5,2.51555]
[1743823414324,6.11369,1814.6,1814.5,2.51555]
[1743823416323,6.11369,1814.6,1814.4,1.10266]
[1743823416522,2.1248,1814.5,1814.4,2.56776]
[1743823416928,4.59759,1814.6,1814.5,1.10265]
[1743823417123,6.02849,1814.6,1814.5,1.10265]
[1743823418229,6.73739,1814.6,1814.5,1.10265]
[1743823419218,6.73739,1814.6,1814.4,1.4651]
[1743823419628,1.394,1814.5,1814.3,1.10275]
[1743823419832,0.769,1814.4,1814.3,1.10275]
[1743823420928,2.1626,1814.4,1814.3,1.10275]
[1743823422434,0.769,1814.4,1814.3,1.10275]
[1743823422929,3.495,1814.5,1814.4,1.10271]
[1743823423933,3.495,1814.5,1814.4,3.33801]
[1743823426635,4.59765,1814.5,1814.4,3.33801]
[1743823427136,4.59765,1814.5,1814.3,0.7164]
[1743823427137,4.59765,1814.5,1814.3,1.10273]
[1743823427335,1.4031,1814.4,1814.3,1.10273]
[1743823427736,1.4031,1814.4,1814.3,2.56193]
[1743823431142,3.495,1814.5,1814.4,1.10271]
[1743823431333,3.495,1814.5,1814.4,2.55971]
[1743823431837,4.59765,1814.5,1814.4,2.55971]
[1743823432046,6.12745,1814.5,1814.4,1.457]
[1743823432643,6.12745,1814.5,1814.4,2.55971]
[1743823436355,5.0248,1814.5,1814.4,2.55971]
[1743823437750,6.12745,1814.5,1814.4,1.457]
[1743823438757,6.12745,1814.5,1814.4,2.55971]
[1743823440862,5.0248,1814.5,1814.4,2.55971]
[1743823442062,6.12745,1814.5,1814.4,2.55971]
[1743823445363,6.12745,1814.5,1814.4,1.457]
[1743823445562,6.12745,1814.5,1814.3,1.10272]
[1743823445861,1.486,1814.4,1814.3,1.10272]
[1743823446061,1.486,1814.4,1814.3,2.58672]
[1743823448158,2.58871,1814.4,1814.3,2.58672]
[1743823448460,1.486,1814.4,1814.3,2.58672]
[1743823449562,2.58871,1814.4,1814.3,2.58672]
[1743823449764,1.486,1814.4,1814.3,2.58672]
[1743823450265,2.58871,1814.4,1814.3,2.58672]
[1743823451464,2.58871,1814.4,1814.3,1.10272]
[1743823452365,1.486,1814.4,1814.3,1.10272]
[1743823452565,1.486,1814.4,1814.3,2.55282]
[1743823453066,2.58871,1814.4,1814.3,2.55282]
[1743823453369,1.486,1814.4,1814.3,2.55282]
[1743823456363,4.59769,1814.5,1814.4,1.10271]
[1743823457065,1.10271,1814.4,1814.3,1.10275]
[1743823457261,6.09559,1814.5,1814.3,1.10275]
[1743823458968,6.09559,1814.5,1814.4,1.10271]
[1743823460967,6.09559,1814.5,1814.3,1.10272]
[1743823462359,6.09559,1814.5,1814.4,1.10271]
[1743823462565,4.9929,1814.5,1814.4,1.10271]
[1743823463371,6.09555,1814.5,1814.4,1.10271]
[1743823469777,4.59765,1814.5,1814.4,1.10271]
[1743823472278,3.495,1814.5,1814.4,1.10271]
[1743823474078,5.32043,1814.6,1814.5,1.10265]
[1743823476174,3.495,1814.6,1814.5,1.10265]
[1743823477581,4.59759,1814.6,1814.5,1.10265]
[1743823479383,1.11081811,1814.7,1814.6,1.10259]
[1743823479581,0.00826811,1814.7,1814.6,1.10259]
[1743823484883,1.42186811,1814.7,1814.6,1.10259]
[1743823485283,0.00826811,1814.7,1814.6,1.10259]
[1743823487889,1.53256811,1814.7,1814.6,1.10259]
[1743823496794,1.53256811,1814.7,1814.6,2.53879]
[1743823501398,2.63508811,1814.7,1814.6,2.53879]
[1743823501903,1.53256811,1814.7,1814.6,2.53879]
[1743823503606,2.63508811,1814.7,1814.6,2.53879]
[1743823503806,1.53256811,1814.7,1814.6,2.53879]
[1743823505509,7.24036811,1814.7,1814.1,3.2078]
[1743823505708,1.10278,1814.3,1814.1,5.79927]
[1743823505919,1.463,1814.2,1814.1,5.79929]
[1743823506107,2.9826,1814.2,1814.1,5.79929]
[1743823508416,4.08543,1814.2,1814.1,4.6964]
[1743823510716,4.08543,1814.2,1814.1,5.79929]
[1743823511114,4.08543,1814.2,1814.1,6.51489]
[1743823512014,4.08543,1814.2,1814.1,3.30709]
[1743823512921,2.9826,1814.2,1814.1,3.30709]
[1743823514418,1.463,1814.2,1814.1,3.30709]
[1743823514814,4.31053,1814.4,1814.1,2.2042]
[1743823515018,7.80453,1814.4,1814.2,2.1733]
[1743823515221,4.31053,1814.4,1814.3,1.3872]
[1743823516418,3.2078,1814.4,1814.3,2.48997]
[1743823517718,4.31051,1814.4,1814.3,1.3872]
[1743823518323,6.56351,1814.4,1814.3,1.3872]
[1743823519924,3.2078,1814.4,1814.3,2.48997]
[1743823520126,4.31051,1814.4,1814.3,1.3872]
[1743823520323,1.10271,1814.4,1814.3,1.3872]
[1743823520520,3.33791,1814.4,1814.3,1.3872]
[1743823520720,3.33791,1814.4,1814.3,2.1558]
[1743823521825,3.33791,1814.4,1814.3,3.25857]
[1743823522125,3.33791,1814.4,1814.3,2.1558]
[1743823522326,3.33791,1814.4,1814.3,3.25857]
[1743823523424,3.33791,1814.4,1814.3,2.1558]
[1743823524426,3.33791,1814.4,1814.3,3.25857]
[1743823525433,3.2078,1814.6,1814.5,1.10265]
[1743823526128,4.31039,1814.6,1814.5,2.2864]
[1743823526628,6.46619,1814.6,1814.5,2.2864]
[1743823526926,6.46619,1814.6,1814.5,3.38905]
[1743823527227,6.46619,1814.6,1814.5,2.2864]
[1743823531832,6.46619,1814.6,1814.4,1.10266]
[1743823532031,3.25839,1814.6,1814.4,1.10266]
[1743823532531,1.86129,1814.6,1814.4,1.10266]
[1743823532731,1.86129,1814.6,1814.5,2.1693]
[1743823535137,3.39879,1814.6,1814.5,2.1693]
[1743823537537,6.60659,1814.6,1814.5,1.4595]
[1743823537734,1.10269,1814.5,1814.4,1.10271]
[1743823537934,2.1642,1814.5,1814.4,1.10271]
[1743823538738,3.2078,1814.6,1814.5,1.10265]
[1743823539237,3.50226811,1814.7,1814.6,1.10259]
[1743823539431,0.00826811,1814.7,1814.6,1.10259]
[1743823539632,0.00826811,1814.7,1814.6,2.55099]
[1743823553942,1.52426811,1814.7,1814.5,4.31041]
[1743823554145,1.10265,1814.5,1814.3,1.10277]
[1743823554347,1.10265,1814.5,1814.3,2.61377]
[1743823554647,8.2168,1814.6,1814.1,3.2078]
[1743823554840,1.10277,1814.3,1814.1,6.55226]
[1743823555240,1.4903,1814.3,1814.1,6.55226]
[1743823555548,2.59308,1814.3,1814.1,6.55226]
[1743823556644,2.59308,1814.3,1814.2,1.5342]
[1743823557947,1.4903,1814.3,1814.2,1.5342]
[1743823559849,1.10289,1814.1,1814.0,0.00826811]
[1743823560438,1.10307,1813.8,1813.7,3.2078]
[1743823560752,1.10312,1813.8,1813.5,1.85174]
[1743823560950,2.9349,1813.7,1813.5,3.23864]
[1743823561544,2.9349,1813.7,1813.6,1.10319]
[1743823562449,2.9349,1813.7,1813.5,3.23863]
[1743823562850,2.9349,1813.7,1813.5,2.1354]
[1743823563150,2.61429,1813.6,1813.3,1.86433]
[1743823563343,1.5111,1813.5,1813.3,1.86433]
[1743823563546,1.5111,1813.5,1813.3,3.25123]
[1743823563741,1.5111,1813.5,1813.4,1.10331]
[1743823564048,1.10334,1813.4,1813.1,1.10347]
[1743823564353,0.7235,1813.3,1813.2,1.10344]
[1743823564548,2.1223,1813.3,1813.2,1.10344]
[1743823564947,2.1223,1813.3,1813.1,2.62497]
[1743823565147,2.1223,1813.3,1813.1,1.5215]
[1743823565344,2.1223,1813.3,1813.1,2.62495]
[1743823565753,6.72968,1813.3,1813.1,2.62495]
[1743823565946,1.3988,1813.2,1813.1,2.62495]
[1743823566144,1.3988,1813.2,1812.9,0.761]
[1743823566346,1.1035,1813.1,1812.8,1.10368]
[1743823566547,1.3988,1813.0,1812.8,1.10368]
[1743823566848,0.746,1812.9,1812.8,2.62518]
[1743823567248,2.1809,1812.9,1812.8,2.62518]
[1743823572457,0.746,1812.9,1812.8,2.62518]
[1743823574061,1.4267,1813.1,1813.0,1.10356]
[1743823574359,4.2315,1813.2,1813.1,1.1035]
[1743823575058,4.2315,1813.2,1813.1,1.5166]
[1743823575259,5.33494,1813.2,1813.1,1.5166]
[1743823575460,5.6257,1813.2,1813.1,2.6201]
[1743823580569,4.2315,1813.2,1813.1,2.6201]
[1743823582663,3.512,1813.2,1813.1,2.6201]
[1743823582863,3.2078,1813.4,1813.3,1.10338]
[1743823583064,6.7198,1813.4,1813.3,1.10338]
[1743823583469,6.7198,1813.4,1813.3,3.38158]
[1743823584076,1.10339,1813.3,1813.1,1.10345]
[1743823584273,3.22029,1813.3,1813.1,2.64155]
[1743823584476,0.732,1813.2,1813.1,2.64155]
[1743823584675,2.1236,1813.2,1813.1,2.64155]
[1743823587384,3.22704,1813.2,1813.0,1.10352]
[1743823587580,1.4033,1813.1,1813.0,1.10352]
[1743823587879,4.9153,1813.1,1813.0,1.10352]
[1743823588086,4.9153,1813.1,1813.0,2.50752]
[1743823588087,3.512,1813.1,1813.0,2.50752]
[1743823589282,4.9428,1813.1,1813.0,2.50752]
[1743823592785,3.512,1813.1,1813.0,2.50752]
[1743823593882,4.9355,1813.1,1813.0,2.50752]
[1743823594882,4.9355,1813.1,1812.8,0.7311]
[1743823595183,2.4935,1813.0,1812.8,1.83474]
[1743823595383,2.1283,1812.9,1812.8,1.83474]
[1743823595573,2.1283,1812.9,1812.8,4.03384237]
[1743823595982,3.23192,1812.9,1812.8,1.4412]
[1743823596176,1.10374,1812.8,1812.6,1.8395]
[1743823596387,6.00864,1812.8,1812.6,1.8395]
[1743823596582,6.00864,1812.8,1812.6,3.2807]
[1743823597487,6.00864,1812.8,1812.7,1.4248]
[1743823597685,1.10374,1812.7,1812.6,0.7357]
[1743823597885,3.25824,1812.7,1812.6,2.1605]
[1743823598491,3.25824,1812.7,1812.6,3.2643]
[1743823598690,2.1545,1812.7,1812.6,3.2643]
[1743823599086,4.61872,1812.8,1812.6,2.1605]
[1743823599287,6.82342,1812.8,1812.7,1.4248]
[1743823604697,6.82342,1812.8,1812.7,2.52854]
[1743823604899,6.82342,1812.8,1812.7,1.4248]
[1743823606197,6.82342,1812.8,1812.7,2.52854]
[1743823606997,6.82342,1812.8,1812.7,1.4248]
[1743823607494,6.82342,1812.8,1812.6,1.83946]
[1743823607495,6.82341,1812.8,1812.6,1.83946]
[1743823607699,1.5375,1812.7,1812.6,3.32606]
[1743823610700,2.64124,1812.7,1812.5,1.10382]
[1743823610897,1.8434,1812.6,1812.5,1.10382]
[1743823611097,3.2304,1812.6,1812.4,6.48358]
[1743823611304,1.387,1812.5,1812.4,6.48358]
[1743823611502,2.0923,1812.5,1812.4,6.48358]
[1743823611703,2.0923,1812.5,1812.4,3.27578]
[1743823613099,3.19616,1812.5,1812.4,3.27578]
[1743823613698,2.0923,1812.5,1812.4,3.27578]
[1743823613907,3.19616,1812.5,1812.4,2.1719]
[1743823614202,3.19616,1812.5,1812.4,3.27582]
[1743823614402,2.0923,1812.5,1812.4,3.27582]
[1743823615205,5.5983,1812.5,1812.4,3.27582]
[1743823615608,3.506,1812.5,1812.4,3.27582]
[1743823617108,4.9083,1812.5,1812.4,3.27582]
[1743823618009,6.01216,1812.5,1812.4,3.27582]
[1743823618307,3.506,1812.5,1812.4,3.27582]
[1743823618507,0.7396,1812.6,1812.5,1.10386]
[1743823618701,4.2436,1812.6,1812.5,3.27216]
[1743823619214,5.3474,1812.6,1812.5,2.1683]
[1743823619611,5.3474,1812.6,1812.5,1.4104]
[1743823620312,5.3474,1812.6,1812.5,2.51426]
[1743823620914,5.3474,1812.6,1812.5,1.4104]
[1743823621218,5.3474,1812.6,1812.5,2.51426]
[1743823623418,5.3474,1812.6,1812.5,1.4104]
[1743823623714,1.10386,1812.5,1812.4,1.86328]
[1743823623916,3.26286,1812.5,1812.4,1.86328]
[1743823624318,2.159,1812.5,1812.4,1.86328]
[1743823624619,2.159,1812.5,1812.4,3.24888]
[1743823625817,0.7396,1812.6,1812.5,1.10386]
[1743823626122,3.499,1812.6,1812.5,2.53806]
[1743823626311,1.10378,1812.7,1812.6,1.1038]
[1743823626614,1.1038,1812.6,1812.5,1.10382]
[1743823626816,1.4245,1812.6,1812.5,1.10382]
[1743823627218,2.52834,1812.6,1812.4,3.29748]
[1743823627410,2.52834,1812.6,1812.5,1.4342]
[1743823627917,2.52834,1812.6,1812.5,2.53806]
[1743823628114,2.52834,1812.6,1812.5,1.4342]
[1743823628315,2.52834,1812.6,1812.5,2.53806]
[1743823629015,2.52834,1812.6,1812.5,1.4342]
[1743823629213,2.52834,1812.6,1812.4,1.86329]
[1743823629214,1.10386,1812.5,1812.4,1.86329]
[1743823629420,4.04256,1812.5,1812.4,1.10389]
[1743823629614,4.04256,1812.5,1812.3,6.51064]
[1743823629816,1.4723,1812.4,1812.3,6.51064]
[1743823630718,1.4664,1812.5,1812.4,1.10392]
[1743823630919,1.4664,1812.5,1812.4,2.54982]
[1743823633922,2.57026,1812.5,1812.4,2.54982]
[1743823634315,1.4664,1812.5,1812.4,2.54982]
[1743823635823,0.7017,1812.5,1812.4,2.54982]
[1743823640334,3.34254,1812.6,1812.5,1.10386]
[1743823640628,3.34254,1812.6,1812.5,2.64136]
[1743823642934,4.241,1812.7,1812.5,2.64136]